bitfinex/quotes_SOLUSD_20220208
["timestamp","ask_amount","ask_price","bid_price","bid_amount"]
[1644303574070,0.9050655,118.3,118.23,6.25]
[1644303575272,0.9050655,118.3,118.23,0.25]
[1644303575473,24.7992655,118.3,118.23,18.9321]
[1644303575972,25.0492655,118.3,118.23,18.9321]
[1644303576972,25.00546068,118.3,118.23,18.9321]
[1644303577175,25.00546068,118.3,118.23,18.6821]
[1644303577376,24.75546068,118.3,118.23,18.6821]
[1644303578076,37.43836068,118.3,118.23,6.0]
[1644303578276,45.52336068,118.3,118.23,6.0]
[1644303578491,45.52336068,118.3,118.22,18.6833]
[1644303578690,45.52336068,118.3,118.22,18.9333]
[1644303578890,45.77336068,118.3,118.22,6.25]
[1644303579094,51.77336068,118.3,118.22,12.9334]
[1644303579292,45.77336068,118.3,118.22,18.9334]
[1644303580095,51.77336068,118.3,118.22,6.25]
[1644303580295,12.21,118.29,118.22,6.25]
[1644303580593,12.6853,118.28,118.22,6.25]
[1644303580793,12.9353,118.28,118.2,1.19578411]
[1644303580994,23.1754,118.27,118.2,1.19578411]
[1644303581195,34.9504,118.27,118.19,1.19578411]
[1644303581396,35.2004,118.27,118.19,1.19578411]
[1644303582494,35.2004,118.27,118.19,1.44578411]
[1644303582698,47.8866,118.27,118.19,14.13238411]
[1644303584096,47.8866,118.27,118.19,20.13238411]
[1644303584496,47.8866,118.27,118.19,14.13238411]
[1644303584695,47.3866,118.27,118.19,14.13238411]
[1644303585099,59.9138,118.27,118.19,14.13238411]
[1644303586097,47.3866,118.27,118.19,14.13238411]
[1644303586999,47.3866,118.27,118.19,21.80935079]
[1644303587198,47.3866,118.27,118.19,15.80935079]
[1644303587598,34.4504,118.27,118.19,15.80935079]
[1644303587799,22.6754,118.27,118.19,20.13238411]
[1644303587998,22.6754,118.27,118.19,14.13238411]
[1644303589005,22.9254,118.27,118.19,14.13238411]
[1644303590201,22.6754,118.27,118.19,14.13238411]
[1644303590603,22.6754,118.27,118.19,20.13238411]
[1644303590800,22.9254,118.27,118.19,19.88238411]
[1644303591002,35.6113,118.27,118.19,19.88238411]
[1644303591604,35.6113,118.27,118.19,18.6866]
[1644303592105,58.6473,118.27,118.19,12.6866]
[1644303592303,58.6473,118.27,118.18,13.88388411]
[1644303592504,64.6473,118.27,118.18,6.0]
[1644303592706,66.75505549,118.27,118.17,7.19578411]
[1644303593107,66.75505549,118.27,118.17,6.0]
[1644303593505,66.75505549,118.27,118.16,7.19578411]
[1644303594206,66.75505549,118.27,118.16,6.25]
[1644303594706,66.75505549,118.27,118.16,6.0]
[1644303595405,66.75505549,118.27,118.15,1.19578411]
[1644303595608,89.86515549,118.27,118.15,13.41938411]
[1644303596010,89.86515549,118.27,118.15,12.2236]
[1644303596205,89.86515549,118.27,118.15,12.4736]
[1644303596706,89.61515549,118.27,118.15,24.9146]
[1644303597910,89.61515549,118.27,118.16,23.6116]
[1644303598116,89.86515549,118.27,118.16,12.22308]
[1644303598311,89.86515549,118.27,118.16,6.47308]
[1644303600816,103.4063504,118.27,118.16,6.22308]
[1644303601016,152.68,118.26,118.16,6.22308]
[1644303601217,12.6949,118.23,118.16,6.22308]
[1644303601417,12.21,118.22,118.16,6.22308]
[1644303601615,18.21,118.22,118.16,6.22308]
[1644303601818,18.46,118.22,118.16,6.22308]
[1644303602316,12.6947,118.21,118.16,6.22308]
[1644303602616,30.9047,118.21,118.16,6.22308]
[1644303602817,31.1547,118.21,118.16,6.22308]
[1644303603017,25.1547,118.21,118.16,6.47308]
[1644303603220,25.1547,118.21,118.16,6.22308]
[1644303603418,12.6917,118.22,118.16,6.47308]
[1644303603617,22.6297,118.25,118.16,8.14588728]
[1644303603818,22.6297,118.25,118.16,14.14588728]
[1644303604416,22.6297,118.25,118.17,24.147]
[1644303604617,22.6297,118.25,118.17,30.147]
[1644303604819,22.6297,118.25,118.18,12.6873]
[1644303605220,22.6297,118.25,118.18,12.9373]
[1644303605420,22.6297,118.25,118.19,1.67280728]
[1644303605823,22.6297,118.25,118.19,1.92280728]
[1644303606222,22.6297,118.25,118.2,1.67280728]
[1644303606421,22.6297,118.25,118.2,12.6859]
[1644303606620,22.6297,118.25,118.2,12.9359]
[1644303609223,35.7963,118.27,118.2,12.9359]
[1644303609422,36.0463,118.27,118.2,12.6859]
[1644303611034,36.0463,118.27,118.2,12.9359]
[1644303614847,46.3353,118.27,118.18,13.88368411]
[1644303615048,46.3353,118.27,118.18,18.6879]
[1644303615049,66.65305549,118.27,118.18,18.6879]
[1644303615248,66.65305549,118.27,118.18,12.6879]
[1644303615850,64.5453,118.27,118.18,12.6879]
[1644303616149,54.2563,118.27,118.19,1.66450782]
[1644303616352,54.2563,118.27,118.2,12.6862]
[1644303616750,30.8962,118.27,118.2,12.9362]
[1644303616951,24.8948,118.29,118.2,14.60070782]
[1644303617151,12.6848,118.29,118.2,20.60070782]
[1644303617355,12.6848,118.29,118.2,18.9362]
[1644303617660,12.6848,118.29,118.2,12.9362]
[1644303617860,12.6848,118.29,118.2,18.9362]
[1644303618061,12.6848,118.29,118.2,12.9362]
[1644303618456,12.6848,118.29,118.22,12.6848]
[1644303618871,12.6848,118.29,118.22,12.9348]
[1644303619263,12.9348,118.29,118.22,12.9348]
[1644303619959,12.9348,118.29,118.22,0.25]
[1644303620159,12.9348,118.29,118.19,43.47628411]
[1644303620160,12.9348,118.29,118.19,1.19578411]
[1644303620359,24.9762,118.28,118.19,1.19578411]
[1644303620564,12.6861,118.27,118.18,1.19578411]
[1644303620766,12.9361,118.27,118.18,1.19578411]
[1644303621165,25.3321,118.27,118.18,1.19578411]
[1644303621364,23.0894,118.26,118.19,12.6881]
[1644303621563,12.6884,118.25,118.18,1.19578411]
[1644303621762,12.9384,118.25,118.18,1.19578411]
[1644303621962,12.9384,118.25,118.17,55.28028411]
[1644303622768,12.9384,118.25,118.17,68.22028411]
[1644303623167,12.9384,118.25,118.17,67.0245]
[1644303623363,25.1484,118.25,118.17,67.0245]
[1644303623571,25.1484,118.25,118.17,68.22028411]
[1644303624266,25.1484,118.25,118.17,67.0245]
[1644303624468,25.1484,118.25,118.17,68.22028411]
[1644303624668,25.1484,118.25,118.17,7.19578411]
[1644303624870,31.1484,118.25,118.16,6.22308]
[1644303625667,39.85976707,118.25,118.16,6.22308]
[1644303625868,41.96752256,118.25,118.16,6.22308]
[1644303626673,41.96752256,118.25,118.16,8e-05]
[1644303626874,12.6998,118.22,118.15,0.024]
[1644303627075,12.21,118.21,118.14,0.024]
[1644303627277,12.21,118.21,118.1,1.19578411]
[1644303627278,14.56775549,118.21,118.11,0.024]
[1644303627476,2.10775549,118.2,118.11,0.024]
[1644303627677,2.10775549,118.2,118.06,2.39156821]
[1644303627678,12.21,118.19,118.08,1.21978411]
[1644303627872,67.9055,118.19,118.1,0.024]
[1644303628073,14.80755549,118.18,118.1,0.024]
[1644303628273,12.21,118.17,118.07,1.19578411]
[1644303628477,14.31775549,118.17,118.08,0.024]
[1644303628672,14.31775549,118.17,118.05,1.21978411]
[1644303628673,43.51045549,118.17,118.05,1.21978411]
[1644303628878,43.51045549,118.17,118.06,0.024]
[1644303629273,43.51045549,118.17,118.04,1.21978411]
[1644303629479,43.51045549,118.17,118.05,1.19578411]
[1644303629679,12.7041,118.15,118.06,0.024]
[1644303629875,12.21,118.14,118.05,0.024]
[1644303630077,18.21,118.14,118.05,0.024]
[1644303630277,18.46,118.14,118.05,0.024]
[1644303630480,20.56775549,118.14,118.05,0.024]
[1644303630682,12.7052,118.12,118.03,0.024]
[1644303630880,39.2842,118.12,118.03,0.024]
[1644303631076,39.5342,118.12,118.03,0.024]
[1644303631678,39.5342,118.12,118.0,1.19578411]
[1644303631879,41.64195549,118.12,118.02,0.024]
[1644303632276,39.5342,118.12,118.02,0.024]
[1644303633479,41.64195549,118.12,118.02,0.024]
[1644303634480,39.5342,118.12,118.02,0.024]
[1644303634681,30.9152,118.12,118.02,1.68437985]
[1644303634881,30.9152,118.12,118.03,0.024]
[1644303635081,24.9152,118.12,118.03,0.024]
[1644303636283,25.1652,118.12,118.03,0.024]
[1644303637188,31.1652,118.12,118.03,0.024]
[1644303637589,31.1652,118.12,118.04,0.024]
[1644303637991,31.1652,118.12,118.01,0.024]
[1644303638191,43.08995549,118.12,118.01,0.024]
[1644303638912,42.83995549,118.12,118.01,0.024]
[1644303639102,42.83995549,118.12,118.01,6.25499]
[1644303640203,43.08995549,118.12,118.01,6.25499]
[1644303641504,43.08995549,118.12,118.01,8.16536985]
[1644303641704,31.1652,118.12,118.01,8.16536985]
[1644303642305,31.1652,118.12,118.01,1.93437985]
[1644303642708,30.9152,118.12,118.01,1.93437985]
[1644303643011,30.9152,118.12,118.01,0.274]
[1644303643206,33.02295549,118.12,118.01,0.024]
[1644303643908,56.53075549,118.12,118.01,0.024]
[1644303644109,56.78075549,118.12,118.01,0.024]
[1644303644509,56.78075549,118.12,118.01,6.25499]
[1644303644911,56.53075549,118.12,118.01,6.25499]
[1644303645110,12.7052,118.12,118.01,50.55116985]
[1644303645309,12.21,118.13,118.01,62.76116985]
[1644303645511,12.7022,118.14,118.01,62.76116985]
[1644303645710,12.21,118.16,118.01,77.22810586]
[1644303645911,0.54591836,118.17,118.01,77.22810586]
[1644303646112,0.54591836,118.17,118.01,78.41776225]
[1644303646311,0.54591836,118.17,118.01,77.22810586]
[1644303646816,0.54591836,118.17,118.01,231.09776225]
[1644303647011,0.54591836,118.17,118.01,229.90810586]
[1644303647213,0.54591836,118.17,118.01,231.09776225]
[1644303647916,13.24441836,118.17,118.01,231.09776225]
[1644303648213,13.24441836,118.17,118.01,224.86677225]
[1644303648922,13.24441836,118.17,118.01,231.09776225]
[1644303649119,13.49441836,118.17,118.01,231.09776225]
[1644303650217,13.49441836,118.17,118.02,1.18965639]
[1644303650414,13.49441836,118.17,118.06,12.6988]
[1644303650616,13.49441836,118.17,118.07,0.024]
[1644303651814,13.49441836,118.17,118.07,12.7221]
[1644303652013,13.49441836,118.17,118.08,0.024]
[1644303654419,19.63245836,118.17,118.08,0.024]
[1644303655319,21.74021385,118.17,118.08,0.024]
[1644303655518,39.95021385,118.17,118.08,0.024]
[1644303655722,63.95981385,118.17,118.08,0.024]
[1644303655920,63.95981385,118.17,118.05,1.21365639]
[1644303656119,63.95981385,118.17,118.06,1.21365639]
[1644303656319,63.95981385,118.17,118.07,0.024]
[1644303661824,76.70061385,118.17,118.07,0.024]
[1644303662423,85.41198092,118.17,118.07,0.024]
[1644303662826,85.41198092,118.17,118.05,0.024]
[1644303663023,93.74598092,118.17,118.05,0.024]
[1644303664327,107.64365637,118.17,118.05,0.024]
[1644303664527,12.7085,118.13,118.05,0.024]
[1644303664750,12.21,118.12,118.02,1.21365639]
[1644303664927,12.21,118.12,118.02,0.024]
[1644303664928,37.98955549,118.12,118.02,0.024]
[1644303665127,44.23955549,118.12,118.03,0.024]
[1644303665330,44.23955549,118.12,118.02,0.024]
[1644303665527,2.10775549,118.11,118.02,0.024]
[1644303665728,12.21,118.1,118.0,1.18965639]
[1644303665928,35.1183,118.1,118.01,0.024]
[1644303666230,43.47605549,118.1,118.01,0.024]
[1644303666427,12.7082,118.09,118.01,0.024]
[1644303666628,29.5712,118.09,118.01,0.024]
[1644303666930,42.0312,118.09,118.01,0.024]
[1644303668033,48.16924,118.09,118.01,0.024]
[1644303668430,48.16924,118.09,118.0,0.024]
[1644303671330,47.91924,118.09,118.0,0.024]
[1644303672831,48.16924,118.09,118.0,0.024]
[1644303680440,50.27699549,118.09,118.0,0.024]
[1644303682144,24.9553,118.08,117.97,26.13555639]
[1644303682343,12.7128,118.05,117.98,0.024]
[1644303682545,24.5018,118.05,117.98,0.024]
[1644303682744,30.7518,118.05,117.97,26.13555639]
[1644303682944,30.7518,118.05,117.97,24.9459]
[1644303683546,30.5018,118.05,117.97,24.9459]
[1644303684146,30.5018,118.05,117.97,26.13555639]
[1644303685448,30.5018,118.05,117.97,1.21365639]
[1644303685649,30.7518,118.05,117.97,1.21365639]
[1644303685848,30.7518,118.05,117.97,1.68662458]
[1644303686053,30.5018,118.05,117.97,1.68662458]
[1644303686252,2.10775549,118.04,117.97,1.21365639]
[1644303686449,12.7154,118.02,117.95,0.024]
[1644303686649,26.5704,118.02,117.94,1.21365639]
[1644303686849,38.7804,118.02,117.94,1.18965639]
[1644303687048,38.7804,118.02,117.94,1.21365639]
[1644303687467,32.7804,118.02,117.95,1.18965639]
[1644303687666,38.7804,118.02,117.95,0.024]
[1644303687866,20.065,118.02,117.96,1.68649126]
[1644303688067,26.065,118.02,117.94,15.61464765]
[1644303688267,13.855,118.02,117.94,15.86464765]
[1644303688467,7.855,118.02,117.94,46.14874765]
[1644303688668,12.21,118.04,117.96,1.18965639]
[1644303688871,11.789,118.05,117.96,1.18965639]
[1644303689168,12.21,118.06,117.97,1.68649126]
[1644303689370,18.21,118.06,117.97,22.8884]
[1644303689669,18.21,118.06,117.97,22.9124]
[1644303689867,12.7126,118.05,117.97,24.59889126]
[1644303690670,12.7126,118.05,117.97,24.84889126]
[1644303691070,6.0,118.06,117.97,38.74994765]
[1644303691274,6.0,118.06,117.97,38.72594765]
[1644303691473,6.0,118.06,117.97,38.74994765]
[1644303691670,41.8699,118.07,117.97,38.74994765]
[1644303692070,42.1199,118.07,117.97,38.74994765]
[1644303692275,12.7113,118.06,117.97,38.74994765]
[1644303692475,20.3883,118.06,117.97,37.06345639]
[1644303692675,78.0,118.05,117.95,1.68232893]
[1644303692877,78.0,118.05,117.94,2.37931277]
[1644303692878,152.68,118.03,117.94,2.37931277]
[1644303693076,152.68,118.01,117.92,22.7796]
[1644303693277,12.21,118.0,117.9,2.37931277]
[1644303693477,12.21,118.0,117.89,23.07062656]
[1644303693478,12.7214,117.97,117.89,23.07062656]
[1644303693677,42.3204,117.97,117.89,23.07062656]
[1644303693877,42.5704,117.97,117.89,23.07062656]
[1644303694277,42.5704,117.97,117.89,0.09622656]
[1644303694879,0.32028622,117.95,117.78,336.60781973]
[1644303695179,0.32028622,117.95,117.72,9.65822453]
[1644303695180,7.19,117.78,117.72,0.14097344]
[1644303695379,31.00370554,117.77,117.72,0.28194688]
[1644303695578,152.68,117.75,117.71,9.596e-05]
[1644303695877,152.68,117.75,117.71,0.51469816]
[1644303695878,12.21,117.74,117.71,0.51469816]
[1644303696078,170.89,117.74,117.71,0.51469816]
[1644303696279,187.14135151,117.74,117.66,0.170791]
[1644303696478,154.78775549,117.73,117.66,0.170791]
[1644303696680,18.34804,117.72,117.66,0.170791]
[1644303696877,152.68,117.68,117.66,0.170791]
[1644303697080,12.21,117.67,117.66,0.170791]
[1644303697477,164.89,117.67,117.66,0.170791]
[1644303697678,131.89,117.67,117.66,0.170791]
[1644303697879,12.21,117.67,117.66,6.23519094]
[1644303698080,12.21,117.67,117.66,3.20299097]
[1644303698282,12.21,117.67,117.66,0.170791]
[1644303699982,164.89,117.67,117.66,0.170791]
[1644303700182,165.14,117.67,117.66,0.170791]
[1644303700582,164.89,117.67,117.66,0.170791]
[1644303700783,165.14,117.67,117.66,0.170791]
[1644303701086,171.14,117.67,117.66,0.000791]
[1644303701483,87.0,117.66,117.65,0.00301528]
[1644303701683,170.89,117.66,117.65,0.00301528]
[1644303701886,106.0,117.65,117.61,0.42496962]
[1644303702084,120.056,117.65,117.61,0.65100018]
[1644303702285,127.61,117.62,117.61,0.00206112]
[1644303702584,151.942,117.62,117.49,1.02070688]
[1644303702783,127.61,117.58,117.49,1.02070688]
[1644303702986,10.21,117.57,117.49,1.02070688]
[1644303703184,10.21,117.57,117.5,1.68232893]
[1644303703383,10.21,117.57,117.49,1.02070688]
[1644303703384,10.46,117.57,117.49,1.02070688]
[1644303703983,10.46,117.57,117.49,1.77073857]
[1644303704386,10.46,117.57,117.49,0.08840964]
[1644303704584,16.46,117.57,117.49,0.08840964]
[1644303704785,16.46,117.57,117.49,1.77073857]
[1644303704984,16.21,117.57,117.49,1.77073857]
[1644303705184,16.21,117.57,117.49,7.77073857]
[1644303705384,16.46,117.57,117.49,7.77073857]
[1644303705586,16.21,117.57,117.49,7.77073857]
[1644303705784,16.46,117.57,117.49,7.77073857]
[1644303706085,11.963,117.58,117.49,7.77073857]
[1644303706486,12.213,117.58,117.49,7.77073857]
[1644303706685,11.963,117.58,117.49,7.77073857]
[1644303706888,11.963,117.58,117.49,8.02073857]
[1644303707487,11.963,117.58,117.49,7.77073857]
[1644303707886,10.21,117.6,117.49,6.08840964]
[1644303708089,16.21,117.6,117.49,0.08840964]
[1644303708389,16.46,117.6,117.49,1.77073857]
[1644303708588,16.46,117.6,117.49,7.79473857]
[1644303708788,22.34804,117.6,117.49,8.04473857]
[1644303709593,16.34804,117.6,117.49,8.04473857]
[1644303710692,6.13804,117.6,117.49,8.04473857]
[1644303711693,6.38804,117.6,117.49,7.79473857]
[1644303712695,6.13804,117.6,117.49,7.79473857]
[1644303713795,6.13804,117.6,117.49,8.04473857]
[1644303714197,17.28504,117.6,117.49,8.04473857]
[1644303714596,23.28504,117.6,117.49,8.04473857]
[1644303714997,11.147,117.6,117.49,7.79473857]
[1644303715498,6.38804,117.6,117.49,7.79473857]
[1644303716298,0.25,117.6,117.49,8.04473857]
[1644303716499,10.21,117.62,117.49,8.04473857]
[1644303716800,16.46,117.62,117.5,0.024]
[1644303717200,16.46,117.62,117.5,1.71160664]
[1644303717400,0.25,117.62,117.51,0.024]
[1644303717600,6.38804,117.62,117.51,0.024]
[1644303717800,6.13804,117.61,117.52,1.68760664]
[1644303718001,6.13804,117.61,117.51,0.024]
[1644303718202,0.25,117.61,117.51,0.024]
[1644303719302,16.46,117.64,117.5,0.024]
[1644303719505,16.91704,117.63,117.5,0.024]
[1644303719703,23.16704,117.63,117.5,0.024]
[1644303720404,17.029,117.63,117.5,1.71160664]
[1644303720604,6.25,117.63,117.51,0.024]
[1644303721022,13.0111,117.63,117.51,0.024]
[1644303721221,10.21,117.62,117.51,0.024]
[1644303721621,10.46,117.62,117.5,0.024]
[1644303721820,6.79591836,117.63,117.5,0.024]
[1644303722025,0.79591836,117.63,117.5,0.024]
[1644303722421,11.00591836,117.63,117.5,0.024]
[1644303723021,0.79591836,117.63,117.5,0.11240964]
[1644303723223,0.54591836,117.63,117.51,0.024]
[1644303724027,0.54591836,117.63,117.51,0.11240964]
[1644303724225,0.54591836,117.63,117.51,0.08840964]
[1644303724425,0.54591836,117.63,117.52,0.024]
[1644303724629,0.54591836,117.63,117.52,2.43324492]
[1644303724826,0.54591836,117.63,117.52,2.68324492]
[1644303725027,0.54591836,117.63,117.52,8.77165456]
[1644303725229,0.54591836,117.63,117.53,2.40924492]
[1644303725429,0.54591836,117.63,117.53,2.43324492]
[1644303725629,0.54591836,117.63,117.53,8.43324492]
[1644303725929,0.54591836,117.63,117.54,2.40924492]
[1644303726131,0.54591836,117.63,117.54,2.52165456]
[1644303726429,0.54591836,117.63,117.55,2.40924492]
[1644303726631,0.54591836,117.63,117.54,0.11240964]
[1644303728231,2.65367385,117.63,117.54,0.11240964]
[1644303728432,15.41397385,117.63,117.54,0.11240964]
[1644303728634,30.83497385,117.63,117.54,0.11240964]
[1644303730734,28.72721836,117.63,117.54,0.11240964]
[1644303732034,30.83497385,117.63,117.54,0.11240964]
[1644303732438,28.72721836,117.63,117.54,0.11240964]
[1644303732636,15.96691836,117.63,117.55,2.42058248]
[1644303732837,6.54591836,117.63,117.55,2.42058248]
[1644303733039,6.54591836,117.63,117.55,2.50899212]
[1644303733238,0.54591836,117.63,117.55,2.50899212]
[1644303733438,6.54591836,117.63,117.55,2.50899212]
[1644303733639,6.54591836,117.63,117.55,0.08840964]
[1644303734238,8.90367385,117.63,117.55,0.08840964]
[1644303734843,6.79591836,117.63,117.55,0.08840964]
[1644303735143,0.79591836,117.63,117.55,0.08840964]
[1644303735338,6.54591836,117.63,117.55,0.08840964]
[1644303735540,17.00591836,117.63,117.55,0.08840964]
[1644303736340,10.75591836,117.63,117.55,0.08840964]
[1644303736538,10.75591836,117.63,117.55,2.5096141]
[1644303736739,29.51571836,117.63,117.55,0.33840964]
[1644303737142,6.54591836,117.63,117.55,0.33840964]
[1644303737344,0.54591836,117.63,117.55,0.33840964]
[1644303737940,0.54591836,117.63,117.56,2.42171521]
[1644303738141,0.54591836,117.63,117.55,2.51012485]
[1644303738441,0.54591836,117.63,117.55,2.76012485]
[1644303738643,0.54591836,117.63,117.55,0.33840964]
[1644303739242,0.54591836,117.63,117.55,0.08840964]
[1644303739444,0.54591836,117.63,117.55,2.51054387]
[1644303740545,0.54591836,117.63,117.55,2.76054387]
[1644303740746,0.54591836,117.63,117.55,0.08840964]
[1644303741443,0.54591836,117.63,117.55,2.51047106]
[1644303741644,0.54591836,117.63,117.55,0.08840964]
[1644303741843,0.54591836,117.63,117.55,0.33840964]
[1644303742045,0.54591836,117.63,117.55,0.08840964]
[1644303742244,0.54591836,117.63,117.55,2.51067762]
[1644303744349,13.30421836,117.63,117.55,2.51067762]
[1644303744551,19.30421836,117.63,117.55,2.51067762]
[1644303744749,13.30421836,117.63,117.55,2.51067762]
[1644303745152,19.30421836,117.63,117.55,2.51067762]
[1644303745749,19.55421836,117.63,117.55,2.51067762]
[1644303746649,19.55421836,117.63,117.55,0.08840964]
[1644303746851,19.55421836,117.63,117.55,2.51179401]
[1644303747350,19.55421836,117.63,117.55,0.08840964]
[1644303748253,13.55421836,117.63,117.55,2.51168676]
[1644303748450,19.55421836,117.63,117.55,0.08840964]
[1644303749951,19.30421836,117.63,117.55,0.08840964]
[1644303750650,18.57631549,117.62,117.52,0.17681928]
[1644303750851,12.7621,117.59,117.52,0.17681928]
[1644303751154,18.7621,117.59,117.52,0.17681928]
[1644303751355,19.0121,117.59,117.52,0.17681928]
[1644303760967,27.9171,117.59,117.52,0.17681928]
[1644303761371,38.1271,117.59,117.52,0.17681928]
[1644303762168,27.9171,117.59,117.52,0.17681928]
[1644303762388,30.02485549,117.59,117.52,0.17681928]
[1644303762587,27.9171,117.59,117.52,0.17681928]
[1644303764589,12.26,117.58,117.52,0.17681928]
[1644303764789,12.7651,117.57,117.52,0.17681928]
[1644303765089,18.7651,117.57,117.52,0.17681928]
[1644303765289,19.0151,117.57,117.52,0.17681928]
[1644303769999,12.26,117.56,117.52,0.17681928]
[1644303770198,12.7677,117.55,117.52,0.17681928]
[1644303770600,13.0177,117.55,117.52,0.17681928]
[1644303771100,19.0177,117.55,117.52,0.17681928]
[1644303772705,18.7677,117.55,117.52,0.17681928]
[1644303774005,19.0177,117.55,117.52,0.17681928]
[1644303774406,27.7727,117.55,117.52,0.17681928]
[1644303774808,64.5218,117.55,117.52,0.17681928]
[1644303776210,79.30303392,117.55,117.52,0.17681928]
[1644303778211,79.30303392,117.55,117.47,0.35363856]
[1644303778411,93.94841417,117.55,117.47,0.35363856]
[1644303778613,103.30479055,117.54,117.41,0.24732504]
[1644303778811,12.7731,117.51,117.41,0.24732504]
[1644303779014,12.26,117.5,117.41,0.24732504]
[1644303779210,18.51,117.5,117.41,0.24732504]
[1644303779411,33.29123392,117.5,117.41,0.24732504]
[1644303779612,14.78123392,117.49,117.41,0.24732504]
[1644303779813,12.26,117.48,117.41,0.24732504]
[1644303780013,20.91,117.48,117.41,0.24732504]
[1644303780214,39.9367,117.48,117.41,0.24732504]
[1644303780414,31.0367,117.48,117.41,0.24732504]
[1644303780615,12.26,117.5,117.41,0.24732504]
[1644303780817,12.26,117.53,117.41,0.24732504]
[1644303781038,12.26,117.52,117.41,0.24732504]
[1644303781419,18.26,117.52,117.41,0.24732504]
[1644303781619,12.7718,117.5,117.41,13.01902504]
[1644303781818,12.7718,117.5,117.41,13.26902504]
[1644303782316,12.7718,117.5,117.41,13.01902504]
[1644303783719,12.7718,117.5,117.41,13.26902504]
[1644303784618,24.7808,117.5,117.41,13.26902504]
[1644303784820,24.7808,117.5,117.41,0.24732504]
[1644303785019,31.0308,117.5,117.41,0.24732504]
[1644303785721,18.009,117.5,117.41,0.24732504]
[1644303785919,12.009,117.5,117.41,13.01852504]
[1644303786229,54.827,117.54,117.41,13.01852504]
[1644303786422,42.567,117.54,117.41,13.01852504]
[1644303786623,48.567,117.54,117.41,13.01852504]
[1644303786820,48.567,117.54,117.41,13.26852504]
[1644303787020,48.817,117.54,117.41,13.26852504]
[1644303787223,6.25,117.54,117.41,13.26852504]
[1644303787422,12.7689,117.53,117.42,1.69729072]
[1644303787621,18.7689,117.53,117.44,12.7676]
[1644303788024,14.78123392,117.55,117.44,12.7676]
[1644303788223,25.19111369,117.58,117.44,14.71489072]
[1644303788224,12.26,117.57,117.44,14.71489072]
[1644303788423,41.68155861,117.58,117.44,14.71489072]
[1644303789324,26.90538025,117.58,117.44,14.71489072]
[1644303789723,12.7644,117.57,117.44,14.71489072]
[1644303790226,12.7644,117.57,117.48,12.7638]
[1644303790425,58.7117,117.6,117.48,12.7638]
[1644303790624,12.26,117.61,117.48,14.71109072]
[1644303790824,23.4821,117.62,117.49,3.03219997]
[1644303791026,12.7599,117.61,117.49,45.56389997]
[1644303791227,12.7599,117.61,117.49,57.11819069]
[1644303791728,12.7599,117.61,117.52,12.7595]
[1644303792225,12.7599,117.61,117.49,44.47899072]
[1644303792428,41.93445861,117.61,117.49,0.25]
[1644303792627,47.93445861,117.61,117.48,23.5151]
[1644303792929,48.18445861,117.61,117.48,23.5151]
[1644303793228,48.18445861,117.61,117.5,12.7612]
[1644303793429,27.65528025,117.61,117.5,12.7612]
[1644303793628,27.40528025,117.61,117.5,12.7612]
[1644303793829,27.40528025,117.61,117.5,14.45849072]
[1644303794029,27.40528025,117.61,117.5,14.70849072]
[1644303794234,27.65528025,117.61,117.5,14.70849072]
[1644303794434,27.65528025,117.61,117.5,13.0112]
[1644303794632,27.40528025,117.61,117.5,13.0112]
[1644303795032,27.65528025,117.61,117.5,12.7612]
[1644303795233,12.7599,117.61,117.5,12.7612]
[1644303796355,12.80591836,117.63,117.5,13.0112]
[1644303796558,0.25,117.62,117.5,36.3522]
[1644303796957,29.42455861,117.62,117.5,12.7612]
[1644303797557,29.42455861,117.62,117.5,18.7612]
[1644303797757,42.18305861,117.62,117.5,18.7612]
[1644303798259,27.65388025,117.62,117.5,19.0112]
[1644303799459,13.0085,117.62,117.5,19.0112]
[1644303799860,13.0085,117.62,117.5,20.70849072]
[1644303800061,0.25,117.62,117.5,20.70849072]
[1644303800260,0.79591836,117.63,117.54,12.7567]